[Event "Late-Titled-Tuesday-Blitz-August-29-2023"]
[Site "Chess.com"]
[Date "2023.08.29"]
[Round "2"]
[White "Mikhail_Golubev"]
[Black "XDPS"]
[Result "0-1"]
[WhiteElo "2554"]
[BlackElo "2874"]
[TimeControl "180+1"]
[EndTime "14:18:20 PDT"]
[Termination "XDPS won on time"]

1. e4 {[%clk 0:03:00.9]} 1... c5 {[%clk 0:02:59.6]} 2. Nf3 {[%clk 0:03:01]} 2...
d6 {[%clk 0:02:56.1]} 3. d4 {[%clk 0:03:01.4]} 3... cxd4 {[%clk 0:02:57]} 4.
Nxd4 {[%clk 0:03:01.6]} 4... Nf6 {[%clk 0:02:57.7]} 5. Nc3 {[%clk 0:03:01.9]}
5... a6 {[%clk 0:02:56.4]} 6. Bc4 {[%clk 0:03:02.3]} 6... e6 {[%clk 0:02:56.4]}
7. Bb3 {[%clk 0:03:02.1]} 7... b5 {[%clk 0:02:55.6]} 8. O-O {[%clk 0:02:59.8]}
8... Qb6 {[%clk 0:02:49.2]} 9. Qf3 {[%clk 0:02:20.6]} 9... Nbd7 {[%clk
0:02:43.9]} 10. Be3 {[%clk 0:02:04.4]} 10... Qb7 {[%clk 0:02:36.5]} 11. Rfe1
{[%clk 0:01:42.2]} 11... Be7 {[%clk 0:02:22.3]} 12. Qg3 {[%clk 0:01:27.9]} 12...
O-O {[%clk 0:02:17.8]} 13. Nd5 {[%clk 0:00:59.7]} 13... Bd8 {[%clk 0:02:02.8]}
14. Nxf6+ {[%clk 0:00:47.4]} 14... Nxf6 {[%clk 0:01:59]} 15. f3 {[%clk
0:00:45.9]} 15... Be7 {[%clk 0:01:56.2]} 16. a4 {[%clk 0:00:42.8]} 16... Bd7
{[%clk 0:01:54.8]} 17. axb5 {[%clk 0:00:40.3]} 17... axb5 {[%clk 0:01:55.7]} 18.
Bh6 {[%clk 0:00:27.3]} 18... Ne8 {[%clk 0:01:52.9]} 19. Rxa8 {[%clk 0:00:17.7]}
19... Qxa8 {[%clk 0:01:53.8]} 20. Bg5 {[%clk 0:00:15.6]} 20... Bxg5 {[%clk
0:01:44.2]} 21. Qxg5 {[%clk 0:00:16.5]} 21... Qa5 {[%clk 0:01:30.2]} 22. Rd1
{[%clk 0:00:13.6]} 22... h6 {[%clk 0:01:17.7]} 23. Qd2 {[%clk 0:00:12.6]} 23...
Qb6 {[%clk 0:01:16.4]} 24. Qf2 {[%clk 0:00:12.6]} 24... Qb7 {[%clk 0:01:09.9]}
25. Ne2 {[%clk 0:00:11.1]} 25... Bc6 {[%clk 0:01:05.9]} 26. Nf4 {[%clk
0:00:10.5]} 26... Bd7 {[%clk 0:00:53.3]} 27. Qd2 {[%clk 0:00:09.6]} 27... Qc7
{[%clk 0:00:49.2]} 28. Kh1 {[%clk 0:00:08.8]} 28... Qc5 {[%clk 0:00:40.4]} 29.
Nd3 {[%clk 0:00:08.5]} 29... Qb6 {[%clk 0:00:38.5]} 30. Nb4 {[%clk 0:00:06.9]}
30... Bc8 {[%clk 0:00:29.1]} 31. c3 {[%clk 0:00:06.4]} 31... Bb7 {[%clk
0:00:29.3]} 32. Qd4 {[%clk 0:00:05.7]} 32... Qa5 {[%clk 0:00:23.2]} 33. h3
{[%clk 0:00:04.6]} 33... h5 {[%clk 0:00:16.6]} 34. Kh2 {[%clk 0:00:03.9]} 34...
h4 {[%clk 0:00:16.7]} 35. Qf2 {[%clk 0:00:03.9]} 35... g5 {[%clk 0:00:14.6]} 36.
Qe3 {[%clk 0:00:03.9]} 36... Qd8 {[%clk 0:00:14.5]} 37. e5 {[%clk 0:00:03]}
37... d5 {[%clk 0:00:14.3]} 38. Nc2 {[%clk 0:00:01.9]} 38... Bc6 {[%clk
0:00:13.1]} 39. Nd4 {[%clk 0:00:02.2]} 39... Bd7 {[%clk 0:00:13.8]} 40. f4
{[%clk 0:00:02]} 40... f6 {[%clk 0:00:10.3]} 41. exf6 {[%clk 0:00:01.2]} 41...
gxf4 {[%clk 0:00:09.9]} 0-1

[Event "Late-Titled-Tuesday-Blitz-August-29-2023"]
[Site "Chess.com"]
[Date "2023.08.29"]
[Round "2"]
[White "reevecanada"]
[Black "TanitoluwaAps116"]
[Result "0-1"]
[WhiteElo "2530"]
[BlackElo "2786"]
[TimeControl "180+1"]
[EndTime "14:18:20 PDT"]
[Termination "TanitoluwaAps116 won by checkmate"]

1. e4 {[%clk 0:02:59.6]} 1... c5 {[%clk 0:02:59.4]} 2. Nf3 {[%clk 0:02:59.1]}
2... Nc6 {[%clk 0:02:56.9]} 3. Bb5 {[%clk 0:02:58.2]} 3... g6 {[%clk 0:02:56.9]}
4. O-O {[%clk 0:02:56.1]} 4... Bg7 {[%clk 0:02:56.7]} 5. Re1 {[%clk 0:02:56.5]}
5... Qc7 {[%clk 0:02:56.5]} 6. c3 {[%clk 0:02:56.2]} 6... e5 {[%clk 0:02:48.9]}
7. Na3 {[%clk 0:02:54.4]} 7... Nge7 {[%clk 0:02:46.2]} 8. Nc2 {[%clk 0:02:53.5]}
8... O-O {[%clk 0:02:39.5]} 9. Ne3 {[%clk 0:02:48.5]} 9... d6 {[%clk 0:02:35.7]}
10. Nd5 {[%clk 0:02:33.8]} 10... Nxd5 {[%clk 0:02:33.7]} 11. exd5 {[%clk
0:02:34.7]} 11... Ne7 {[%clk 0:02:26.3]} 12. d4 {[%clk 0:02:33.2]} 12... cxd4
{[%clk 0:02:19.6]} 13. cxd4 {[%clk 0:02:30.6]} 13... e4 {[%clk 0:02:12.4]} 14.
Rxe4 {[%clk 0:02:27.7]} 14... Bf5 {[%clk 0:02:12.4]} 15. Re1 {[%clk 0:02:22.6]}
15... Nxd5 {[%clk 0:02:07.1]} 16. Bg5 {[%clk 0:02:20.7]} 16... h6 {[%clk
0:02:04]} 17. Bh4 {[%clk 0:02:18.9]} 17... Qb6 {[%clk 0:01:59.1]} 18. Bc4 {[%clk
0:02:12.5]} 18... Nb4 {[%clk 0:01:51.9]} 19. Bb3 {[%clk 0:02:08.6]} 19... Nd3
{[%clk 0:01:46.7]} 20. Re2 {[%clk 0:01:46.7]} 20... Rfe8 {[%clk 0:01:37.9]} 21.
Rd2 {[%clk 0:01:39.2]} 21... Nf4 {[%clk 0:01:16.9]} 22. Bg3 {[%clk 0:01:34]}
22... Ne6 {[%clk 0:01:11.5]} 23. Ba4 {[%clk 0:01:31.5]} 23... Red8 {[%clk
0:01:05.6]} 24. Rc1 {[%clk 0:01:25.1]} 24... Rac8 {[%clk 0:01:01.8]} 25. Bc2
{[%clk 0:01:14.9]} 25... Bg4 {[%clk 0:00:56.3]} 26. d5 {[%clk 0:01:05.7]} 26...
Ng5 {[%clk 0:00:45.9]} 27. h3 {[%clk 0:00:50.9]} 27... Nxf3+ {[%clk 0:00:37.7]}
28. gxf3 {[%clk 0:00:45.4]} 28... Bxh3 {[%clk 0:00:36.7]} 29. Kh2 {[%clk
0:00:42]} 29... Bd7 {[%clk 0:00:34.3]} 30. Bb3 {[%clk 0:00:42.1]} 30... h5
{[%clk 0:00:29]} 31. Re2 {[%clk 0:00:40.5]} 31... Rxc1 {[%clk 0:00:25.4]} 32.
Qxc1 {[%clk 0:00:39.4]} 32... Bf6 {[%clk 0:00:22.9]} 33. Qf4 {[%clk 0:00:37.6]}
33... Kg7 {[%clk 0:00:14.3]} 34. Bh4 {[%clk 0:00:21.7]} 34... Bxh4 {[%clk
0:00:10]} 35. Qxh4 {[%clk 0:00:22.6]} 35... Rf8 {[%clk 0:00:05.4]} 36. Re3
{[%clk 0:00:21.6]} 36... Bf5 {[%clk 0:00:04.7]} 37. Kg3 {[%clk 0:00:17.6]} 37...
Qc5 {[%clk 0:00:04.5]} 38. Qg5 {[%clk 0:00:17.1]} 38... f6 {[%clk 0:00:04]} 39.
Re7+ {[%clk 0:00:16.1]} 39... Rf7 {[%clk 0:00:04.4]} 40. Rxf7+ {[%clk
0:00:16.5]} 40... Kxf7 {[%clk 0:00:05.3]} 41. Qh6 {[%clk 0:00:16.6]} 41... Qd4
{[%clk 0:00:05]} 42. Qh7+ {[%clk 0:00:15.4]} 42... Kf8 {[%clk 0:00:05.6]} 43.
Qxb7 {[%clk 0:00:15.7]} 43... h4+ {[%clk 0:00:06.1]} 44. Kh2 {[%clk 0:00:15.3]}
44... Qxf2+ {[%clk 0:00:06.1]} 45. Kh1 {[%clk 0:00:14.7]} 45... Qxf3+ {[%clk
0:00:06.4]} 46. Kg1 {[%clk 0:00:14.4]} 46... Qg3+ {[%clk 0:00:06.9]} 47. Kh1
{[%clk 0:00:12.6]} 47... Be4# {[%clk 0:00:07.3]} 0-1

[Event "Late-Titled-Tuesday-Blitz-August-29-2023"]
[Site "Chess.com"]
[Date "2023.08.29"]
[Round "2"]
[White "AungTZ"]
[Black "Training_Day"]
[Result "0-1"]
[WhiteElo "2028"]
[BlackElo "2440"]
[TimeControl "180+1"]
[EndTime "14:18:21 PDT"]
[Termination "Training_Day won on time"]

1. e4 {[%clk 0:03:00]} 1... e5 {[%clk 0:02:59.5]} 2. Nf3 {[%clk 0:03:00]} 2...
Nc6 {[%clk 0:02:59.2]} 3. d4 {[%clk 0:03:00.2]} 3... exd4 {[%clk 0:02:57]} 4.
Nxd4 {[%clk 0:03:00.1]} 4... Bc5 {[%clk 0:02:52.9]} 5. Nb3 {[%clk 0:02:59.2]}
5... Bb4+ {[%clk 0:02:49.7]} 6. c3 {[%clk 0:02:56.7]} 6... Be7 {[%clk
0:02:49.5]} 7. Bd3 {[%clk 0:02:56.2]} 7... d6 {[%clk 0:02:43.1]} 8. O-O {[%clk
0:02:55.6]} 8... Nf6 {[%clk 0:02:30.5]} 9. c4 {[%clk 0:02:54.8]} 9... Ne5 {[%clk
0:02:26.5]} 10. Nc3 {[%clk 0:02:53.2]} 10... Nxd3 {[%clk 0:02:25.7]} 11. Qxd3
{[%clk 0:02:53]} 11... O-O {[%clk 0:02:24.6]} 12. Be3 {[%clk 0:02:50]} 12... Re8
{[%clk 0:02:23.5]} 13. Rad1 {[%clk 0:02:49.2]} 13... Ng4 {[%clk 0:02:11.3]} 14.
Bf4 {[%clk 0:02:44.8]} 14... Bf6 {[%clk 0:02:04.6]} 15. h3 {[%clk 0:02:41.7]}
15... Ne5 {[%clk 0:02:03.3]} 16. Bxe5 {[%clk 0:02:41.6]} 16... Bxe5 {[%clk
0:02:03.3]} 17. Rfe1 {[%clk 0:02:39.9]} 17... Be6 {[%clk 0:01:50.6]} 18. Nd4
{[%clk 0:02:34.9]} 18... Qf6 {[%clk 0:01:34.2]} 19. b3 {[%clk 0:02:13.9]} 19...
c6 {[%clk 0:01:19.8]} 20. Nce2 {[%clk 0:01:45.7]} 20... Qh4 {[%clk 0:01:04.3]}
21. Nf3 {[%clk 0:01:21.2]} 21... Qh5 {[%clk 0:00:56.2]} 22. Nxe5 {[%clk
0:01:19.8]} 22... dxe5 {[%clk 0:00:57.1]} 23. Ng3 {[%clk 0:01:15.1]} 23... Qg6
{[%clk 0:00:51.8]} 24. Kh2 {[%clk 0:01:13.1]} 24... h5 {[%clk 0:00:49.4]} 25.
Qf3 {[%clk 0:00:56.1]} 25... h4 {[%clk 0:00:45.4]} 26. Nf5 {[%clk 0:00:55.8]}
26... Qg5 {[%clk 0:00:34.1]} 27. Qe3 {[%clk 0:00:47.2]} 27... Qxe3 {[%clk
0:00:28.5]} 28. Rxe3 {[%clk 0:00:46.5]} 28... g5 {[%clk 0:00:10.6]} 29. Nd6
{[%clk 0:00:40.9]} 29... Re7 {[%clk 0:00:10.1]} 30. c5 {[%clk 0:00:38.8]} 30...
b6 {[%clk 0:00:07.7]} 31. Rc3 {[%clk 0:00:36.9]} 31... Rd7 {[%clk 0:00:02.7]}
32. cxb6 {[%clk 0:00:20.2]} 32... axb6 {[%clk 0:00:03.6]} 33. Rxc6 {[%clk
0:00:09.8]} 33... Rxa2 {[%clk 0:00:03.9]} 34. Kg1 {[%clk 0:00:03.9]} 34... b5
{[%clk 0:00:02.8]} 35. Rc3 {[%clk 0:00:02.2]} 35... Rb2 {[%clk 0:00:02.4]} 0-1

[Event "Late-Titled-Tuesday-Blitz-August-29-2023"]
[Site "Chess.com"]
[Date "2023.08.29"]
[Round "2"]
[White "Sinquefield"]
[Black "AvitalBor"]
[Result "0-1"]
[WhiteElo "2444"]
[BlackElo "2744"]
[TimeControl "180+1"]
[EndTime "14:18:23 PDT"]
[Termination "AvitalBor won by resignation"]

1. d4 {[%clk 0:02:31.7]} 1... Nf6 {[%clk 0:02:59.6]} 2. Nf3 {[%clk 0:02:28.6]}
2... g6 {[%clk 0:02:58.3]} 3. Bg5 {[%clk 0:02:29]} 3... Bg7 {[%clk 0:02:57.3]}
4. Nbd2 {[%clk 0:02:29.6]} 4... d5 {[%clk 0:02:57]} 5. e3 {[%clk 0:02:30]} 5...
c5 {[%clk 0:02:56.7]} 6. c3 {[%clk 0:02:29.5]} 6... Ne4 {[%clk 0:02:56]} 7. Nxe4
{[%clk 0:02:29.1]} 7... dxe4 {[%clk 0:02:56.2]} 8. Nd2 {[%clk 0:02:29.2]} 8...
Qd5 {[%clk 0:02:42.9]} 9. Bf4 {[%clk 0:02:23.9]} 9... cxd4 {[%clk 0:02:39]} 10.
exd4 {[%clk 0:02:15.2]} 10... Nc6 {[%clk 0:02:36]} 11. Bc4 {[%clk 0:02:14.7]}
11... Qf5 {[%clk 0:02:34.7]} 12. Bg3 {[%clk 0:02:13.9]} 12... O-O {[%clk
0:02:34.1]} 13. Qe2 {[%clk 0:02:13.9]} 13... e5 {[%clk 0:02:29.8]} 14. d5 {[%clk
0:02:09.3]} 14... Na5 {[%clk 0:02:29]} 15. Bb5 {[%clk 0:02:09.4]} 15... Rd8
{[%clk 0:02:12.4]} 16. b4 {[%clk 0:02:02.9]} 16... Rxd5 {[%clk 0:02:10.6]} 17.
bxa5 {[%clk 0:02:01.1]} 17... Bh6 {[%clk 0:01:51.9]} 18. Nxe4 {[%clk 0:01:52]}
18... Rxb5 {[%clk 0:01:48]} 19. Qxb5 {[%clk 0:01:36.4]} 19... Qxe4+ {[%clk
0:01:48.1]} 20. Qe2 {[%clk 0:01:37]} 20... Qxe2+ {[%clk 0:01:20.2]} 21. Kxe2
{[%clk 0:01:36.5]} 21... f6 {[%clk 0:01:20.7]} 22. f3 {[%clk 0:01:34.1]} 22...
Be6 {[%clk 0:01:20.1]} 23. Rhd1 {[%clk 0:01:31.8]} 23... Rc8 {[%clk 0:01:18.3]}
24. Be1 {[%clk 0:01:28]} 24... Kf7 {[%clk 0:01:12.8]} 25. Rab1 {[%clk 0:01:27]}
25... Rc7 {[%clk 0:01:11.4]} 26. Rb2 {[%clk 0:01:26.2]} 26... Bc4+ {[%clk
0:01:09]} 27. Kf2 {[%clk 0:01:26.3]} 27... Ke6 {[%clk 0:01:08.4]} 28. Bd2 {[%clk
0:01:26.6]} 28... Bf8 {[%clk 0:01:03.2]} 29. Be3 {[%clk 0:01:26.3]} 29... Ba3
{[%clk 0:01:02.3]} 30. Rbd2 {[%clk 0:01:24.3]} 30... a6 {[%clk 0:01:01.7]} 31.
Bb6 {[%clk 0:01:21.3]} 31... Rc6 {[%clk 0:01:01.8]} 32. Rd7 {[%clk 0:01:16.4]}
32... Bb5 {[%clk 0:00:58.2]} 33. Rc7 {[%clk 0:01:12.7]} 33... Bc5+ {[%clk
0:00:49.7]} 34. Ke1 {[%clk 0:01:06]} 34... Rxc7 {[%clk 0:00:49.3]} 35. Bxc7
{[%clk 0:01:06.1]} 35... Bc4 {[%clk 0:00:49.9]} 36. Rd2 {[%clk 0:00:59.7]} 36...
h5 {[%clk 0:00:47]} 37. Rb2 {[%clk 0:00:56.2]} 37... Bd5 {[%clk 0:00:47.2]} 38.
Bb6 {[%clk 0:00:54.8]} 38... Ba3 {[%clk 0:00:47.2]} 39. Rc2 {[%clk 0:00:52.6]}
39... Bc4 {[%clk 0:00:46.8]} 40. Rd2 {[%clk 0:00:52.6]} 40... Bd6 {[%clk
0:00:45.5]} 41. Kf2 {[%clk 0:00:50.7]} 41... g5 {[%clk 0:00:45.7]} 42. Be3
{[%clk 0:00:43.7]} 42... Be7 {[%clk 0:00:43.6]} 43. g3 {[%clk 0:00:42.6]} 43...
Bd6 {[%clk 0:00:43.4]} 44. Rb2 {[%clk 0:00:39.9]} 44... Bd5 {[%clk 0:00:41.7]}
45. Rb6 {[%clk 0:00:40.4]} 45... Bc6 {[%clk 0:00:40.8]} 46. Rb2 {[%clk
0:00:39.1]} 46... Bc7 {[%clk 0:00:40.9]} 47. Bb6 {[%clk 0:00:37.4]} 47... Bd6
{[%clk 0:00:41.3]} 48. c4 {[%clk 0:00:36.9]} 48... Ba3 {[%clk 0:00:41.2]} 49.
Rd2 {[%clk 0:00:34.6]} 49... Be7 {[%clk 0:00:40.2]} 50. Ke3 {[%clk 0:00:33.3]}
50... f5 {[%clk 0:00:37.9]} 51. f4 {[%clk 0:00:33.3]} 51... gxf4+ {[%clk
0:00:28.7]} 52. gxf4 {[%clk 0:00:34.2]} 52... Bd6 {[%clk 0:00:29.2]} 53. fxe5
{[%clk 0:00:23.1]} 53... Bxe5 {[%clk 0:00:30.1]} 54. Rd8 {[%clk 0:00:22.9]}
54... f4+ {[%clk 0:00:30.4]} 55. Kf2 {[%clk 0:00:22.5]} 55... Kf5 {[%clk
0:00:30.8]} 56. Rh8 {[%clk 0:00:20.4]} 56... Bxh8 {[%clk 0:00:30.3]} 0-1

[Event "Late-Titled-Tuesday-Blitz-August-29-2023"]
[Site "Chess.com"]
[Date "2023.08.29"]
[Round "2"]
[White "aa175"]
[Black "Jumbo"]
[Result "0-1"]
[WhiteElo "2607"]
[BlackElo "2949"]
[TimeControl "180+1"]
[EndTime "14:18:25 PDT"]
[Termination "Jumbo won by resignation"]

1. d4 {[%clk 0:02:52.1]} 1... Nf6 {[%clk 0:02:59.5]} 2. Bf4 {[%clk 0:02:47.4]}
2... c5 {[%clk 0:02:58.1]} 3. e3 {[%clk 0:02:47.9]} 3... cxd4 {[%clk 0:02:52.2]}
4. exd4 {[%clk 0:02:48.8]} 4... Qb6 {[%clk 0:02:52.5]} 5. Nc3 {[%clk 0:02:48.2]}
5... a6 {[%clk 0:02:51.8]} 6. a3 {[%clk 0:02:48.3]} 6... d5 {[%clk 0:02:49.9]}
7. Bd3 {[%clk 0:02:48.9]} 7... Nc6 {[%clk 0:02:48.3]} 8. Nge2 {[%clk 0:02:49]}
8... Bg4 {[%clk 0:02:46.3]} 9. f3 {[%clk 0:02:49.1]} 9... Bh5 {[%clk 0:02:46.9]}
10. O-O {[%clk 0:02:48.4]} 10... Bg6 {[%clk 0:02:47.2]} 11. Re1 {[%clk
0:02:47.4]} 11... e6 {[%clk 0:02:46.3]} 12. Kh1 {[%clk 0:02:43]} 12... Be7
{[%clk 0:02:45.4]} 13. Na4 {[%clk 0:02:41.2]} 13... Qd8 {[%clk 0:02:38.8]} 14.
c3 {[%clk 0:02:24.3]} 14... O-O {[%clk 0:02:30.2]} 15. Ng3 {[%clk 0:02:22.5]}
15... Re8 {[%clk 0:02:27.5]} 16. Nc5 {[%clk 0:02:17.3]} 16... Bxc5 {[%clk
0:01:35.7]} 17. dxc5 {[%clk 0:02:14.6]} 17... e5 {[%clk 0:01:34.3]} 18. Bg5
{[%clk 0:02:12.7]} 18... d4 {[%clk 0:01:26.7]} 19. c4 {[%clk 0:02:10.2]} 19...
Re6 {[%clk 0:01:12.5]} 20. Ne4 {[%clk 0:02:01.7]} 20... Qf8 {[%clk 0:01:01.7]}
21. Bxf6 {[%clk 0:01:58.5]} 21... gxf6 {[%clk 0:00:57.1]} 22. b4 {[%clk
0:01:58.9]} 22... a5 {[%clk 0:00:50.5]} 23. b5 {[%clk 0:01:56.2]} 23... Ne7
{[%clk 0:00:48.1]} 24. Nd6 {[%clk 0:01:56.5]} 24... b6 {[%clk 0:00:44]} 25. cxb6
{[%clk 0:01:45.4]} 25... Rxd6 {[%clk 0:00:40.2]} 26. c5 {[%clk 0:01:46]} 26...
Re6 {[%clk 0:00:39.4]} 27. Bc4 {[%clk 0:01:37.1]} 27... Qd8 {[%clk 0:00:19.7]}
28. Qb3 {[%clk 0:01:34.8]} 28... a4 {[%clk 0:00:16.2]} 29. Qa2 {[%clk
0:01:31.5]} 29... Rxb6 {[%clk 0:00:12.1]} 30. cxb6 {[%clk 0:01:30.8]} 30... Qxb6
{[%clk 0:00:13]} 31. Qd2 {[%clk 0:01:28.3]} 31... Nf5 {[%clk 0:00:11.8]} 32. Qb4
{[%clk 0:01:25.9]} 32... Ne3 {[%clk 0:00:11.4]} 33. Rxe3 {[%clk 0:01:01.5]}
33... dxe3 {[%clk 0:00:11.3]} 34. h4 {[%clk 0:01:01]} 34... Rd8 {[%clk
0:00:10.5]} 35. Re1 {[%clk 0:00:29]} 35... Rd4 {[%clk 0:00:10.5]} 36. Kg1 {[%clk
0:00:20.1]} 36... Bd3 {[%clk 0:00:07.7]} 37. Rc1 {[%clk 0:00:19.6]} 37... e2
{[%clk 0:00:07.3]} 38. Kh2 {[%clk 0:00:15.4]} 38... Rxh4+ {[%clk 0:00:04.8]} 39.
Kg3 {[%clk 0:00:15.1]} 39... Rxc4 {[%clk 0:00:05.4]} 40. Rxc4 {[%clk 0:00:15.4]}
40... Bxc4 {[%clk 0:00:06.3]} 41. Qxc4 {[%clk 0:00:11.8]} 41... e1=Q+ {[%clk
0:00:05.7]} 42. Kh3 {[%clk 0:00:10.7]} 42... Qe6+ {[%clk 0:00:04]} 0-1

[Event "Late-Titled-Tuesday-Blitz-August-29-2023"]
[Site "Chess.com"]
[Date "2023.08.29"]
[Round "2"]
[White "HajiyevKanan"]
[Black "Garmendiarov"]
[Result "0-1"]
[WhiteElo "2479"]
[BlackElo "2313"]
[TimeControl "180+1"]
[EndTime "14:18:26 PDT"]
[Termination "Garmendiarov won on time"]

1. d4 {[%clk 0:02:33.4]} 1... Nf6 {[%clk 0:02:59.8]} 2. Nf3 {[%clk 0:02:34.3]}
2... g6 {[%clk 0:03:00.2]} 3. c4 {[%clk 0:02:34.9]} 3... Bg7 {[%clk 0:03:00.7]}
4. g3 {[%clk 0:02:35.8]} 4... O-O {[%clk 0:03:00.7]} 5. Bg2 {[%clk 0:02:36.6]}
5... c6 {[%clk 0:03:01.4]} 6. O-O {[%clk 0:02:37.3]} 6... d5 {[%clk 0:03:01.7]}
7. b3 {[%clk 0:02:37.6]} 7... dxc4 {[%clk 0:03:01.4]} 8. bxc4 {[%clk 0:02:38.5]}
8... c5 {[%clk 0:03:02.1]} 9. Bb2 {[%clk 0:02:37.3]} 9... cxd4 {[%clk
0:03:02.5]} 10. Nxd4 {[%clk 0:02:37.2]} 10... Qb6 {[%clk 0:03:02.9]} 11. Qb3
{[%clk 0:02:36]} 11... Nbd7 {[%clk 0:02:39.3]} 12. e3 {[%clk 0:02:23.2]} 12...
Nc5 {[%clk 0:02:35.6]} 13. Qxb6 {[%clk 0:02:22.7]} 13... axb6 {[%clk 0:02:36.3]}
14. Rd1 {[%clk 0:02:15.1]} 14... Bg4 {[%clk 0:02:34.9]} 15. f3 {[%clk
0:02:12.1]} 15... Bd7 {[%clk 0:02:33.4]} 16. Nc3 {[%clk 0:02:10]} 16... Rfc8
{[%clk 0:02:26.2]} 17. e4 {[%clk 0:01:36.4]} 17... e5 {[%clk 0:01:40.1]} 18. Nb3
{[%clk 0:01:33.5]} 18... Na4 {[%clk 0:01:18.5]} 19. Nxa4 {[%clk 0:01:29]} 19...
Bxa4 {[%clk 0:01:14.5]} 20. Bf1 {[%clk 0:01:28.2]} 20... Nd7 {[%clk 0:01:09.4]}
21. Rd6 {[%clk 0:01:19.5]} 21... Bf8 {[%clk 0:01:00]} 22. Rd5 {[%clk 0:01:17.2]}
22... f6 {[%clk 0:00:54.9]} 23. Bh3 {[%clk 0:01:14.7]} 23... Rc7 {[%clk
0:00:49.6]} 24. Rad1 {[%clk 0:01:00.1]} 24... Nc5 {[%clk 0:00:45]} 25. Rd8
{[%clk 0:00:57.4]} 25... Rxd8 {[%clk 0:00:41.9]} 26. Rxd8 {[%clk 0:00:58.3]}
26... Bxb3 {[%clk 0:00:27]} 27. axb3 {[%clk 0:00:58.9]} 27... Nxb3 {[%clk
0:00:27.4]} 28. f4 {[%clk 0:00:56.1]} 28... Kf7 {[%clk 0:00:14.4]} 29. fxe5
{[%clk 0:00:51.8]} 29... Bc5+ {[%clk 0:00:10.7]} 30. Kg2 {[%clk 0:00:43.4]}
30... fxe5 {[%clk 0:00:10.6]} 31. Bxe5 {[%clk 0:00:42.8]} 31... Re7 {[%clk
0:00:10.7]} 32. Bf4 {[%clk 0:00:28.9]} 32... Rxe4 {[%clk 0:00:09.4]} 33. Kf3
{[%clk 0:00:28.9]} 33... Re7 {[%clk 0:00:08.6]} 34. Rh8 {[%clk 0:00:27.8]} 34...
Nd4+ {[%clk 0:00:08.3]} 35. Kg2 {[%clk 0:00:17.5]} 35... Kg7 {[%clk 0:00:08.8]}
36. Rb8 {[%clk 0:00:16.2]} 36... Re2+ {[%clk 0:00:08]} 37. Kf1 {[%clk
0:00:16.6]} 37... Rxh2 {[%clk 0:00:07.4]} 38. Rxb7+ {[%clk 0:00:16.8]} 38... Kf6
{[%clk 0:00:06.9]} 39. Bc8 {[%clk 0:00:16.9]} 39... Nf3 {[%clk 0:00:06.4]} 0-1

[Event "Late-Titled-Tuesday-Blitz-August-29-2023"]
[Site "Chess.com"]
[Date "2023.08.29"]
[Round "2"]
[White "albi1999"]
[Black "DanielNaroditsky"]
[Result "1/2-1/2"]
[WhiteElo "2686"]
[BlackElo "3107"]
[TimeControl "180+1"]
[EndTime "14:18:29 PDT"]
[Termination "Game drawn - insufficient material"]

1. d4 {[%clk 0:02:59.3]} 1... Nf6 {[%clk 0:02:59.5]} 2. c4 {[%clk 0:02:59.1]}
2... g6 {[%clk 0:03:00]} 3. Nc3 {[%clk 0:02:56.7]} 3... Bg7 {[%clk 0:03:00.1]}
4. Nf3 {[%clk 0:02:55.9]} 4... d6 {[%clk 0:02:59.6]} 5. Bg5 {[%clk 0:02:48.3]}
5... Bf5 {[%clk 0:02:59.7]} 6. e3 {[%clk 0:02:46.8]} 6... Ne4 {[%clk 0:03:00.1]}
7. Nxe4 {[%clk 0:02:45.7]} 7... Bxe4 {[%clk 0:03:01]} 8. Be2 {[%clk 0:02:38]}
8... c5 {[%clk 0:03:00]} 9. O-O {[%clk 0:02:37.6]} 9... h6 {[%clk 0:02:49.8]}
10. Bh4 {[%clk 0:02:36.4]} 10... Qb6 {[%clk 0:02:46.3]} 11. Qd2 {[%clk
0:02:24.8]} 11... Nd7 {[%clk 0:02:30.5]} 12. Rfd1 {[%clk 0:02:21.1]} 12... g5
{[%clk 0:02:30.4]} 13. Bg3 {[%clk 0:02:20.2]} 13... O-O {[%clk 0:02:31.1]} 14.
Rac1 {[%clk 0:02:18.5]} 14... Nf6 {[%clk 0:02:20.2]} 15. Ne1 {[%clk 0:02:14]}
15... Bg6 {[%clk 0:02:12.5]} 16. Bd3 {[%clk 0:01:58.4]} 16... cxd4 {[%clk
0:02:01.4]} 17. exd4 {[%clk 0:01:55.2]} 17... Qxd4 {[%clk 0:01:44.5]} 18. Bxg6
{[%clk 0:01:47]} 18... Qxd2 {[%clk 0:01:45.4]} 19. Bxf7+ {[%clk 0:01:46.8]}
19... Rxf7 {[%clk 0:01:46.3]} 20. Rxd2 {[%clk 0:01:47.4]} 20... Rc8 {[%clk
0:01:42.5]} 21. Rdc2 {[%clk 0:01:45]} 21... Ne4 {[%clk 0:01:40.6]} 22. Rd1
{[%clk 0:01:33.6]} 22... h5 {[%clk 0:01:36.8]} 23. f3 {[%clk 0:01:33.1]} 23...
Nxg3 {[%clk 0:01:34.2]} 24. hxg3 {[%clk 0:01:34]} 24... Be5 {[%clk 0:01:30.9]}
25. Kf2 {[%clk 0:01:33]} 25... h4 {[%clk 0:01:28.6]} 26. gxh4 {[%clk 0:01:32]}
26... gxh4 {[%clk 0:01:29.5]} 27. b3 {[%clk 0:01:25.8]} 27... Rh7 {[%clk
0:01:16.7]} 28. Re2 {[%clk 0:01:21.8]} 28... Rf8 {[%clk 0:01:12.8]} 29. Re4
{[%clk 0:01:20.5]} 29... h3 {[%clk 0:01:11.2]} 30. Rg4+ {[%clk 0:01:19.6]} 30...
Kf7 {[%clk 0:01:09.7]} 31. Nd3 {[%clk 0:01:17.2]} 31... Bf6 {[%clk 0:01:01.4]}
32. Rh1 {[%clk 0:01:15]} 32... Rfh8 {[%clk 0:01:02]} 33. g3 {[%clk 0:01:07.4]}
33... a6 {[%clk 0:01:00.9]} 34. a4 {[%clk 0:01:06.4]} 34... b5 {[%clk
0:00:48.6]} 35. axb5 {[%clk 0:01:03.5]} 35... axb5 {[%clk 0:00:49.5]} 36. cxb5
{[%clk 0:01:04.4]} 36... Rb8 {[%clk 0:00:49.7]} 37. Rb4 {[%clk 0:01:01.4]} 37...
Bc3 {[%clk 0:00:50.3]} 38. Rc4 {[%clk 0:00:59.8]} 38... Bf6 {[%clk 0:00:49.9]}
39. Rb4 {[%clk 0:00:57.4]} 39... d5 {[%clk 0:00:46.1]} 40. b6 {[%clk 0:00:52.6]}
40... Rxb6 {[%clk 0:00:44.5]} 41. Rxb6 {[%clk 0:00:52.8]} 41... Bd4+ {[%clk
0:00:45.3]} 42. Ke2 {[%clk 0:00:52.3]} 42... Bxb6 {[%clk 0:00:46.2]} 43. Nf4
{[%clk 0:00:51.7]} 43... h2 {[%clk 0:00:46.3]} 44. Nxd5 {[%clk 0:00:47.9]} 44...
Bg1 {[%clk 0:00:46.8]} 45. Nf4 {[%clk 0:00:40.7]} 45... Rh8 {[%clk 0:00:43.7]}
46. Kf1 {[%clk 0:00:37.7]} 46... Rb8 {[%clk 0:00:27]} 47. Ne2 {[%clk 0:00:34.2]}
47... Bc5 {[%clk 0:00:26.7]} 48. Rxh2 {[%clk 0:00:32]} 48... Rxb3 {[%clk
0:00:27.4]} 49. f4 {[%clk 0:00:22.5]} 49... Rf3+ {[%clk 0:00:27.7]} 50. Kg2
{[%clk 0:00:22]} 50... Re3 {[%clk 0:00:28.1]} 51. Kh3 {[%clk 0:00:22.4]} 51...
Bd6 {[%clk 0:00:27.2]} 52. Rg2 {[%clk 0:00:20.9]} 52... Kf6 {[%clk 0:00:26]} 53.
Kg4 {[%clk 0:00:21.3]} 53... Re4 {[%clk 0:00:23.4]} 54. Ng1 {[%clk 0:00:21]}
54... e5 {[%clk 0:00:20.6]} 55. Re2 {[%clk 0:00:20.9]} 55... Rxe2 {[%clk
0:00:16.3]} 56. Nxe2 {[%clk 0:00:20.9]} 56... exf4 {[%clk 0:00:17.2]} 57. gxf4
{[%clk 0:00:20.9]} 57... Bxf4 {[%clk 0:00:17.5]} 1/2-1/2